[Event "3rd Sunway Formentera-A 2024"]
[Site "Formentera"]
[Date "2024.04.17"]
[Round "8.4"]
[White "Dragnev, Valentin"]
[Black "Moussard, Jules"]
[Result "1/2-1/2"]
[ECO "B48"]
[WhiteElo "2571"]
[BlackElo "2610"]
[Annotator "TA"]
[PlyCount "52"]
[EventDate "2024.04.03"]
[EventType "swiss"]
[EventCountry "ESP"]
[SourceTitle "playchess.com"]
[Source "ChessBase"]
[SourceQuality "1"]
[TimeControl "40/5400+30:1800+30"]

{[%evp 17,52,20,30,0,12,8,14,0,0,0,33,0,0,0,0,0,0,0,0,0,0,0,0,0,0,0,0,0,0,0,0,0,0,0,0,0,0]} 1. e4 {[%emt 0:00:02]} c5 {[%emt 0:01:26]} 2. Nf3 {[%emt 0:00:09]} e6 {[%emt 0:00:04]} 3. d4 {[%emt 0:00:13]} cxd4 {[%emt 0:00:04]} 4. Nxd4 {[%emt 0:00:08]} Nc6 {[%emt 0:00:05]} 5. Nc3 {[%emt 0:00:10]} Qc7 {[%emt 0:00:08]} 6. Be3 {[%emt 0:00:14]} a6 {[%emt 0:00:09]} 7. Bd3 {[%emt 0:00:06]} b5 {[%emt 0:18:36]} 8. Nxc6 {[%emt 0:04:03]} Qxc6 {[%emt 0:00:44]} 9. O-O {[%emt 0:07:33]} Bb7 {[%emt 0:02:06]} 10. Qf3 {[%emt 0:08:54]} Nf6 {[%emt 0:11:48]} 11. Bd4 {[%emt 0:02:47]} Be7 {[%emt 0:02:42]} 12. Rfe1 {[%emt 0:03:36]} b4 {[%emt 0:06:09]} 13. Nb1 {[%emt 0:02:03]} Qc7 {[%emt 0:07:37]} 14. Nd2 {[%emt 0:02:53]} O-O {[%emt 0:03:08] The position is equal.} 15. Qh3 {[%emt 0:08:30] [#] Hoping for e5.} e5 {[%emt 0:00:48]} 16. Be3 {[%emt 0:00:20]} d6 {[%emt 0:09:56]} 17. Qg3 {[%emt 0:10:55]} Bc8 {[%emt 0:03:40]} 18. a3 {[%emt 0:01:33]} bxa3 {[%emt 0:03:46]} 19. Rxa3 {[%emt 0:00:33]} Be6 {[%emt 0:00:43]} 20. h3 {[%emt 0:21:11][%cal Oe3h6]} ({But not} 20. Rxa6 Rxa6 21. Bxa6 Qxc2 $17) 20... a5 {[%emt 0:06:20]} 21. Bh6 {[%emt 0:05:02]} Nh5 {[%emt 0:01:00]} 22. Qf3 {[%emt 0:00:02]} Nf6 {[%emt 0:00:09]} 23. Qg3 {[%emt 0:00:15]} Nh5 {[%emt 0:01:42]} 24. Qf3 {[%emt 0:00:01]} Nf6 {[%emt 0:00:03]} 25. Qg3 {[%emt 0:02:13]} Nh5 {[%emt 0:01:31]} 26. Qf3 {[%emt 0:00:25]} Nf6 {[%emt 0:00:08] An uneventful encounter.   Weighted Error Value: White=0.04 (flawless) /Black=0.02 (flawless) .  Inaccurate:     	White=1     	Black=1      OK:         	White=9     	Black=16} 1/2-1/2

[Event "3rd Sunway Formentera-A 2024"]
[Site "Formentera"]
[Date "2024.04.17"]
[Round "8.5"]
[White "Vantika Agrawal"]
[Black "Raja Rithvik R"]
[Result "0-1"]
[ECO "D46"]
[WhiteElo "2398"]
[BlackElo "2532"]
[Annotator "TA"]
[PlyCount "88"]
[EventDate "2024.04.03"]
[EventType "swiss"]
[EventCountry "ESP"]
[SourceTitle "playchess.com"]
[Source "ChessBase"]
[SourceQuality "1"]
[TimeControl "40/5400+30:1800+30"]

{[%evp 21,88,11,29,12,20,10,0,-12,0,-23,-8,-17,-20,-10,-13,-15,-20,-35,-33,-37,-32,-47,-45,-34,-37,-37,-41,-39,-43,-35,-48,-45,-38,-31,-45,-52,-43,-45,-36,-49,-54,-68,-67,-64,-69,-82,-65,-145,-142,-600,-612,-634,-634,-897,-885,-900,-797,-1343,-1140,-1913,-1573,-1398,-1398,-29990,-29991,-29991,-29991,-29991,-29992]} 1. d4 {[%emt 0:03:48]} Nf6 {[%emt 0:00:16]} 2. c4 {[%emt 0:00:12]} e6 {[%emt 0:00:16]} 3. Nf3 {[%emt 0:00:04]} d5 {[%emt 0:00:03]} 4. Nc3 {[%emt 0:00:10]} c6 {[%emt 0:00:08]} 5. e3 {[%emt 0:00:42]} Nbd7 {[%emt 0:00:06]} 6. Qc2 {[%emt 0:00:51]} Bd6 {[%emt 0:01:01]} 7. Be2 {[%emt 0:04:13]} O-O {[%emt 0:00:13]} 8. O-O {[%emt 0:00:16]} dxc4 {[%emt 0:00:05]} 9. Bxc4 {[%emt 0:01:09]} b5 {[%emt 0:00:05]} 10. Be2 {[%emt 0:01:16]} Bb7 {[%emt 0:02:02]} 11. e4 {[%emt 0:02:07]} e5 $1 {[%emt 0:00:15]} 12. dxe5 {[%emt 0:00:56]} Nxe5 {[%emt 0:00:07]} 13. Nd4 {[%emt 0:01:23][%cal Bf3d4,Bd4f5,Bf5d6][%mdl 32]} Neg4 {[%emt 0:02:29]} 14. Nf5 {[%emt 0:05:07] The position is equal.} Bxh2+ {[%emt 0:06:33]} (14... Nxh2 $2 15. Rd1 Qb8 16. Rxd6 $18) 15. Kh1 {[%emt 0:00:06]} Bb8 {[%emt 0:03:26]} 16. Bg5 {[%emt 0:02:52]} Bc8 $1 {[%emt 0:06:05]} 17. Rad1 {[%emt 0:02:15]} (17. Bxg4 Qc7 18. g3 (18. Bf4 $2 Qxf4 19. g3 Qxg4 $19) 18... Nxg4 $15) 17... Qc7 {[%emt 0:02:40]} 18. Nd6 {[%emt 0:01:02][%cal Oe4e5]} Be6 {[%emt 0:01:52]} 19. e5 {[%emt 0:01:11]} Nxe5 {[%emt 0:01:40]} 20. Bxf6 {[%emt 0:02:20]} gxf6 {[%emt 0:00:06]} 21. f4 {[%emt 0:00:56]} Ng6 {[%emt 0:00:21]} 22. Nce4 {[%emt 0:01:49] Excellent horsemanship.} Qe7 {[%emt 0:01:43]} 23. Qc3 {[%emt 0:04:50]} (23. Qxc6 f5 24. Ng5 (24. Nxf5 $2 Bxf5 25. Nf6+ Kh8 $19) 24... Nxf4 25. Rxf4 Qxg5 $17) (23. f5 Bd5 24. fxg6 fxg6 (24... Bxd6 $2 25. Nxf6+ Kg7 26. gxf7 $18) 25. Bxb5 (25. Rxd5 cxd5 26. Nxf6+ Kh8 $17) 25... Bxd6 26. Bxc6 Bxe4 27. Qxe4 Qxe4 28. Bxe4 Rad8 $14) 23... b4 {[%emt 0:02:06]} (23... Bxa2 $2 {perishes.} 24. Nxf6+ $18 (24. Qxf6 $2 {too greedy.} Bxd6 25. Rxd6 Qxe4 $19) (24. Qxf6 $2 Bxd6 25. Rxd6 Qxe4 $19)) 24. Qxf6 {[%emt 0:02:15] [#] Hoping for f5.} Bxd6 {[%emt 0:11:35]} 25. Rxd6 {[%emt 0:03:25] f5 would now be deadly.} Bxa2 {[%emt 0:02:23]} 26. Bf3 {[%emt 0:04:54]} Bd5 {[%emt 0:02:07]} 27. Qxe7 {[%emt 0:01:33]} Nxe7 {[%emt 0:00:07]} 28. Nf6+ {[%emt 0:00:09]} Kg7 {[%emt 0:01:16] And now ...Nf5 would win.} 29. Nxd5 {[%emt 0:00:43]} cxd5 {[%emt 0:00:13]} 30. Re1 {[%emt 0:11:28]} Rfe8 {[%emt 0:05:49]} 31. Rd7 {[%emt 0:04:29]} Kf8 {[%emt 0:13:55]} 32. Ra1 {[%emt 0:26:09]} a5 {[%emt 0:05:33]} 33. Kg1 {[%emt 0:08:53]} Ra6 {[%emt 0:03:16]} 34. Be2 {[%emt 0:02:48] [#]} ({White should play} 34. Rb7 $15) 34... Rf6 $1 $17 {[%emt 0:00:42]} 35. Rxa5 $2 {[%emt 0:00:48][%mdl 8192] Now White is beyond hope.} (35. Bh5 $17) 35... Nc6 $1 $19 {[%emt 0:01:12]} ({Less strong is} 35... Rxf4 36. Bh5 $17) 36. Raxd5 {[%emt 0:00:49]} Rxe2 {[%emt 0:00:08]} 37. b3 {[%emt 0:00:30]} Rxf4 {[%emt 0:00:40] White must now prevent ...Ne5.} 38. Rc7 {[%emt 0:00:30]} Ne5 {[%emt 0:00:52] Threatens to win with ...Re1+.} 39. Rc8+ {[%emt 0:00:31]} Kg7 {[%emt 0:00:25] aiming for ...Re1+.} 40. Rd1 {[%emt 0:00:00]} Rff2 {[%emt 0:00:00]} 41. Kh1 {[%emt 0:01:27]} Ng4 {[%emt 0:03:13][%cal Og4e3] ( -> ...Ne3!)} 42. Rg1 {[%emt 0:01:44]} Rf6 {[%emt 0:00:27][%cal Rf6h6] Black mates.} 43. Rgc1 {[%emt 0:00:42]} Rh6+ {[%emt 0:00:12]} 44. Kg1 {[%emt 0:00:02]} Ne3 {[%emt 0:00:07] Weighted Error Value: White=0.73/Black=0.03 (flawless) .  Loses game:     	White=1     	---        Mistake:       	White=1     	---        OK:         	White=10    	Black=15     Best:        	White=4     	Black=2      Strong:       	---       	Black=3} 0-1

[Event "3rd Sunway Formentera-A 2024"]
[Site "Formentera"]
[Date "2024.04.17"]
[Round "8.6"]
[White "Colbow, Collin"]
[Black "Balakrishnan, Praveen"]
[Result "1-0"]
[ECO "B76"]
[WhiteElo "2376"]
[BlackElo "2500"]
[Annotator "TA"]
[PlyCount "149"]
[EventDate "2024.04.03"]
[EventType "swiss"]
[EventCountry "ESP"]
[SourceTitle "playchess.com"]
[Source "ChessBase"]
[SourceQuality "1"]
[TimeControl "40/5400+30:1800+30"]

{[%evp 74,149,0,0,0,0,1387,0,0,-7,-12,-19,0,-22,-6,-19,0,-239,0,0,10,10,2,0,60,-63,-36,-74,-68,-102,-91,-97,0,0,0,0,0,0,0,0,0,0,43,0,12,6,2850,2264,2653,2419,29989,29988,29988,29987,29987,0,29988,29989,29989,29981,29979,0,29989,29990,29993,29991,29991,0,29993,29991,29993,29994,29994,29992,29995,29996,29996,29997]} 1. e4 {[%emt 0:04:16]} c5 {[%emt 0:10:35]} 2. Nf3 {[%emt 0:00:14]} g6 {[%emt 0:00:05]} 3. d4 {[%emt 0:02:17]} cxd4 {[%emt 0:00:07]} 4. Nxd4 {[%emt 0:00:04]} Nc6 {[%emt 0:00:07]} 5. Nc3 {[%emt 0:01:07]} Bg7 {[%emt 0:00:24]} 6. Be3 {[%emt 0:00:06]} Nf6 {[%emt 0:00:13]} 7. Bc4 {[%emt 0:00:05]} O-O {[%emt 0:00:41]} 8. Bb3 {[%emt 0:00:06]} d6 {[%emt 0:01:08]} 9. f3 {[%emt 0:04:05]} Qa5 {[%emt 0:01:36] B76: Sicilian Dragon: Yugoslav Attack, 9 g4 and 9 0-0-0.} 10. Qd3 {[%emt 0:09:26]} Nd7 $146 {[%emt 0:10:32]} ({Predecessor:} 10... Bd7 11. O-O-O Rfc8 12. Nxc6 Rxc6 13. Kb1 Be6 14. Bd4 Rac8 15. Qb5 Qa6 16. h4 Bxb3 17. cxb3 {½-½ Paravyan,D (2592)-Schekachikhin,M (2367) Cheliabinsk Panchenko Memorial op-A 2022 (6)}) 11. O-O-O {[%emt 0:06:23]} Nc5 {[%emt 0:07:45]} 12. Qd2 {[%emt 0:04:44]} Nxd4 {[%emt 0:29:14]} 13. Bxd4 {[%emt 0:00:25]} Nxb3+ {[%emt 0:00:14]} 14. cxb3 {[%emt 0:01:34]} Be6 {[%emt 0:04:42]} 15. Kb1 {[%emt 0:13:40]} Bxd4 {[%emt 0:05:51]} 16. Qxd4 {[%emt 0:00:02]} Rfc8 {[%emt 0:02:06]} 17. h4 {[%emt 0:06:06]} Qe5 {[%emt 0:03:43]} 18. Qd2 {[%emt 0:01:37]} Rc5 {[%emt 0:04:34]} 19. h5 {[%emt 0:04:09]} Rac8 {[%emt 0:03:42]} 20. Ka1 {[%emt 0:09:24]} g5 {[%emt 0:03:14]} 21. h6 {[%emt 0:00:26]} b5 {[%emt 0:01:30]} 22. b4 {[%emt 0:04:41]} Rxc3 {[%emt 0:04:42]} 23. bxc3 {[%emt 0:00:11]} Rxc3 {[%emt 0:00:13]} 24. Qb2 {[%emt 0:02:34]} f6 {[%emt 0:00:24]} 25. Kb1 {[%emt 0:02:25]} Kf7 {[%emt 0:03:37]} 26. Rd2 {[%emt 0:04:28]} Bc4 {[%emt 0:00:50]} 27. Rhd1 {[%emt 0:09:16]} Kg6 {[%emt 0:01:16]} 28. Rh1 {[%emt 0:05:20]} Bd3+ {[%emt 0:00:39]} 29. Ka1 {[%emt 0:00:12]} Bc4 {[%emt 0:00:04]} 30. Kb1 {[%emt 0:00:24]} Bd3+ {[%emt 0:00:15]} 31. Ka1 {[%emt 0:00:04]} Qd4 {[%emt 0:01:07]} 32. Rhd1 {[%emt 0:03:20]} Qc4 {[%emt 0:00:10]} 33. g3 {[%emt 0:00:03]} g4 {[%emt 0:00:48]} 34. fxg4 {[%emt 0:01:19]} Bxe4 {[%emt 0:00:47]} 35. Rd4 {[%emt 0:00:49]} Qc6 {[%emt 0:00:08]} 36. g5 {[%emt 0:02:02]} f5 {[%emt 0:00:39]} 37. g4 {[%emt 0:00:19]} d5 {[%emt 0:00:35]} (37... Kxg5 $2 38. Qd2+ (38. gxf5 Rc2 $11) 38... Kf6 $18 (38... Kxg4 $2 39. Rg1+ Rg3 40. Qe2+ Kf4 41. Qf2+ Ke5 42. Qxg3+ $18)) 38. gxf5+ {[%emt 0:00:11]} Kxf5 {[%emt 0:00:27]} 39. g6 {[%emt 0:01:09]} Rc2 $2 {[%emt 0:00:33][%mdl 8192]} (39... Kxg6 $11 40. Rg1+ Kf7 41. Rf1+ Ke6) 40. Qa3 $2 {[%emt 0:01:27]} (40. gxh7 $2 Rxb2 41. Rf1+ Kg6 $19 (41... Rf2 $2 42. Rxf2+ Kg6 43. h8=N+ $19) (41... Rf2 $2 42. Rxf2+ Kg6 43. h8=N+ $19)) (40. Rxd5+ $1 $18 Bxd5 41. Rxd5+ Qxd5 42. Qxc2+ Kg4 43. g7 (43. gxh7 Qd4+ 44. Kb1 Qxb4+ 45. Kc1 Qf4+ 46. Kd1 Qd4+ 47. Ke1 Qg1+ 48. Kd2 Qh2+ 49. Kc3 Qe5+ 50. Kb4 Kh4 $18) 43... Qe5+ 44. Kb1 Qe1+ 45. Kb2 Qxb4+ 46. Qb3 Qd2+ 47. Kb1 Qe1+ 48. Kc2 Qe4+ 49. Kb2 Qe5+ 50. Ka3 Qd6+ 51. Qb4+ Kh5 52. Qxd6 (52. g8=R Qd3+ 53. Qb3 Qd6+ 54. Kb2 Qf6+ 55. Kc2 Qf2+ 56. Kd3 Qf5+ 57. Kd4 Qf6+ 58. Ke4 Qc6+ 59. Qd5+ Qxd5+ 60. Kxd5 Kxh6 $18)) 40... Qxg6 {[%emt 0:00:00]} 41. Qxa7 {[%emt 0:18:01]} Qg2 {[%emt 0:19:52]} 42. Qa8 $1 {[%emt 0:01:37]} (42. Qxe7 $2 Rxa2#) 42... Ke6 {[%emt 0:03:03]} (42... Ke5 $5) 43. Qa3 {[%emt 0:04:12]} Kf7 {[%emt 0:03:11]} 44. Qb3 $1 {[%emt 0:01:12]} Kf6 {[%emt 0:03:11]} 45. Re1 $2 {[%emt 0:02:46]} (45. R4d2 $1 $11 Rxd2 46. Qc3+ d4 47. Qxd2 Qxd2 48. Rxd2) 45... Rf2 $2 {[%emt 0:02:18]} (45... e6 $1 $19 {Threatens to win with ...Qf2.} 46. Rdd1 Qh2 47. Rf1+ Ke7) 46. Rdd1 $11 {[%emt 0:01:22]} Qg5 {[%emt 0:01:47]} 47. Qc3+ {[%emt 0:02:56]} Qe5 $1 {[%emt 0:00:07]} 48. Rd4 {[%emt 0:00:08]} Kf7 {[%emt 0:00:54]} (48... Ke6 $11) 49. Qe3 {[%emt 0:00:54]} ({White should play} 49. Rc4 $14 Qg5 (49... Qxc3+ 50. Rxc3 Rf6 51. Rc5 $14) 50. Rc7) 49... Qf6 $15 {[%emt 0:00:28]} (49... Qh2 50. Qb3 e6 51. Qa3 $17) 50. Red1 {[%emt 0:01:11]} Bc2 {[%emt 0:00:23]} 51. R1d2 {[%emt 0:00:28] [#]} Rf1+ $1 {[%emt 0:00:45]} 52. Kb2 {[%emt 0:00:05] [#]} Be4 {[%emt 0:00:10]} (52... Bg6 $1 $17 {( -> ...Rb1+)} 53. a4 bxa4) 53. a3 $11 {[%emt 0:00:36]} Rf3 {[%emt 0:00:09]} 54. Qg1 $1 {[%emt 0:00:27]} ({But not} 54. Qe2 Qxh6 55. R2d3 Rxd3 56. Rxd3 Bxd3 57. Qxd3 Qf6+ 58. Kb3 h5 $17) 54... Bg6 {[%emt 0:01:03]} (54... Qxh6 $5 55. Rf2 $8 Qf6 (55... Rxf2+ 56. Qxf2+ Ke8 57. Qf1 $11) 56. Rxf3 Qxf3 $11) 55. Ka2 {[%emt 0:00:10]} Rf1 {[%emt 0:00:21]} (55... Qa6 $5 56. Qc1 $8 (56. Rxd5 $2 Qxa3#) 56... Bf5 $11) 56. Qg2 {[%emt 0:00:44]} Rf3 {[%emt 0:00:46]} 57. Qg4 {[%emt 0:01:06]} (57. Rxd5 $2 {perishes.} Qc3 $19) 57... e6 {[%emt 0:00:37]} 58. Kb2 {[%emt 0:00:31]} Re3 {[%emt 0:00:37]} 59. Qf4 {[%emt 0:00:27]} Bf5 $2 {[%emt 0:00:25][%mdl 8192]} (59... Qxf4 $11 60. Rxf4+ Ke7) 60. Qxe3 $18 {[%emt 0:00:04]} Qg6 {[%emt 0:00:19]} 61. Qe5 {[%emt 0:00:43]} Qh5 {[%emt 0:00:08]} 62. Qc7+ {[%emt 0:00:24]} Ke8 {[%emt 0:00:11]} 63. Qc8+ {[%emt 0:00:02]} Ke7 {[%emt 0:00:10]} 64. Qc7+ {[%emt 0:00:03]} Ke8 {[%emt 0:00:04]} 65. Rg2 {[%emt 0:00:57]} Bg6 {[%emt 0:00:19]} 66. Qc8+ {[%emt 0:00:08]} Ke7 {[%emt 0:00:04]} 67. Qc7+ {[%emt 0:00:03]} Ke8 {[%emt 0:00:03]} 68. Rf4 {[%emt 0:00:55]} Qxh6 {[%emt 0:00:37]} 69. Qc8+ {[%emt 0:00:10]} Ke7 {[%emt 0:00:04]} 70. Qc7+ {[%emt 0:00:03]} Ke8 {[%emt 0:00:02]} 71. Qe5 {[%emt 0:01:53]} Qh3 {[%emt 0:01:01]} 72. Re2 {[%emt 0:00:39]} Kd7 {[%emt 0:00:36]} 73. Rf6 {[%emt 0:00:09]} Be4 {[%emt 0:00:38]} 74. Rf7+ {[%emt 0:00:25]} Ke8 {[%emt 0:00:30]} 75. Qg7 {[%emt 0:00:30]} 1-0

[Event "3rd Sunway Formentera-A 2024"]
[Site "Formentera"]
[Date "2024.04.17"]
[Round "8.7"]
[White "Stark, John"]
[Black "Prado, Alexandra"]
[Result "0-1"]
[ECO "E90"]
[WhiteElo "1954"]
[BlackElo "1839"]
[Annotator "TA"]
[PlyCount "74"]
[EventDate "2024.04.03"]
[EventType "swiss"]
[EventCountry "ESP"]
[SourceTitle "playchess.com"]
[Source "ChessBase"]
[SourceQuality "1"]
[TimeControl "40/5400+30:1800+30"]

{[%evp 10,74,42,20,97,41,71,36,41,35,54,45,43,25,35,35,63,38,29,35,38,27,44,0,0,0,75,74,75,82,81,79,86,78,145,0,0,0,0,0,0,-22,0,0,0,-51,-49,-110,-96,-96,-96,-98,-100,-731,-832,-5269,0,0,0,0,0,0,0,-29996,-29997,-29997,-29998]} 1. c4 {[%emt 0:00:07]} g6 {[%emt 0:02:21]} 2. d4 {[%emt 0:00:11]} Nf6 {[%emt 0:00:09]} 3. Nc3 {[%emt 0:00:05]} Bg7 {[%emt 0:00:04]} 4. e4 {[%emt 0:00:02]} d6 {[%emt 0:00:05]} 5. h3 {[%emt 0:00:05]} Nbd7 {[%emt 0:00:09]} 6. Nf3 {[%emt 0:02:09]} a5 {[%emt 0:03:17]} (6... e5 $11 {remains equal.}) 7. Bg5 {[%emt 0:01:22]} (7. e5 $16) 7... e5 {[%emt 0:04:21]} 8. d5 {[%emt 0:00:59]} h6 {[%emt 0:00:11][%cal Bh7h6,Bh6h5,Bh5h4][%mdl 32] White is slightly better.} 9. Be3 {[%emt 0:00:08]} h5 {[%emt 0:00:37]} 10. Be2 {[%emt 0:09:36]} Bh6 {[%emt 0:01:41]} 11. Qd2 {[%emt 0:00:17]} Bxe3 {[%emt 0:00:22]} 12. Qxe3 {[%emt 0:00:04]} h4 {[%emt 0:04:37]} 13. Nd2 {[%emt 0:04:21]} Nc5 {[%emt 0:16:07]} 14. Nb3 {[%emt 0:07:19]} b6 {[%emt 0:02:05]} 15. Nxc5 {[%emt 0:01:44]} bxc5 {[%emt 0:00:27]} 16. f4 {[%emt 0:04:33]} exf4 17. Qxf4 {[%emt 0:00:07]} Nh5 {[%emt 0:20:52]} (17... Nd7 $11 {keeps the balance.}) 18. Bxh5 $16 {[%emt 0:01:17]} Rxh5 {[%emt 0:00:02]} 19. O-O {[%emt 0:01:38]} Qe7 {[%emt 0:01:57]} 20. Rf2 {[%emt 0:09:52]} Bd7 {[%emt 0:08:59]} 21. Raf1 {[%emt 0:01:02]} f5 {[%emt 0:03:01]} (21... Rh7 $142) 22. exf5 {[%emt 0:05:16]} ({White should try} 22. Re2 $16 {aiming for exf5.} O-O-O (22... g5 $2 23. Qd2 $18) 23. exf5) 22... Rxf5 $11 {[%emt 0:00:11]} 23. Qd2 {[%emt 0:04:13]} O-O-O {[%emt 0:18:29]} 24. Rxf5 {[%emt 0:10:33]} gxf5 {[%emt 0:00:18]} 25. Nd1 {[%emt 0:04:18]} Rg8 {[%emt 0:05:22]} 26. Qxa5 {[%emt 0:03:45]} Kb7 {[%emt 0:00:40] Dodges Qa8+} 27. Rf3 {[%emt 0:00:25]} (27. Qe1 $11 Qg5 28. Qf2) 27... Rg3 $1 $15 {[%emt 0:04:00][%mdl 1024] ...Qe2 would now be deadly. Black has compensation.} 28. Qc3 {[%emt 0:06:49]} (28. Qd2 $15) 28... Qe2 $17 {[%emt 0:01:48][%csl Gg3,LRd1,LRg2][%cal Re2g2]} 29. Nf2 {[%emt 0:05:37] [#]} f4 $40 {[%emt 0:00:29][%cal Od7h3][%mdl 128] Strongly threatening ...Bxh3! Black has strong attack.} 30. Qb3+ {[%emt 0:02:13]} Kc8 {[%emt 0:00:23][%cal Bb7c8,Bc8d7,Bd7d8][%mdl 32] White must now prevent ...Qe1+. Black has more active pieces.} 31. Qa3 $2 {[%emt 0:03:18][%mdl 8192] [#]} (31. Qd1 $17 Qxb2 (31... Qxc4 32. Kh2 $17) 32. Qf1 (32. Rxf4 Bxh3 33. Qa4 Rxg2+ 34. Kh1 Qc1+ 35. Nd1 Qxf4 $11) 32... Rxf3 (32... Qxa2 33. Rxf4 Rb3 34. Kh2 $11) 33. gxf3) 31... Bxh3 $1 $19 {[%emt 0:02:56][%mdl 512]} 32. Kh2 {[%emt 0:10:53]} (32. Qa8+ Kd7) 32... Bxg2 $2 {[%emt 0:00:00]} ({Black should play} 32... Qf1 $19 {[%csl Gg3,Gh3][%cal Rf1g2]} 33. Qa8+ Kd7 34. Rxg3 hxg3+ 35. Kxh3 gxf2 36. Qc6+ Kd8 37. Qa8+ Ke7) 33. Qa8+ $11 {[%emt 0:00:35]} Kd7 {[%emt 0:00:00]} 34. Qc6+ {[%emt 0:00:47]} Kd8 {[%emt 0:00:00]} 35. Rxf4 {[%emt 0:00:21] Intending Rf8+ and mate.} Rf3 {[%emt 0:00:31] Chess con chili.} (35... Qxb2 36. Rf8+ Ke7 37. Qe8#) 36. Re4 {[%emt 0:01:38][%mdl 8192] [#]} (36. Rxh4 $2 {too greedy.} Qe5+ (36... Qxf2 $2 {loses.} 37. Rh8+ Rf8 38. Rxf8+ Qxf8 39. Qa8+ Ke7 40. Qxf8+ Kxf8 41. Kxg2 $18) (36... Qxb2 $2 37. Qa8+ Ke7 38. Re4+ $18) 37. Kg1 Bh3 (37... Qxb2 $2 38. Qa8+ Ke7 39. Re4+ $18) (37... Qe1+ $2 38. Kh2 $19) 38. Qa8+ Bc8 $19) (36. Qa8+ $11 Kd7 37. Rf8 (37. Rxh4 Qe5+ 38. Kg1 Qe1+ 39. Kh2 Qe5+ 40. Kg1 Qe1+ 41. Kh2 Qe5+ $11) (37. Re4 Rh3+ 38. Kxg2 Rg3+ 39. Kh2 Qxf2+ 40. Kh1 Rh3#) 37... Rxf8 (37... Rxf2 38. Qd8#) 38. Qxf8) 36... Rh3+ $3 {[%emt 0:00:50][%mdl 512]} 37. Nxh3 {[%emt 0:00:44]} Bxe4+ {[%emt 0:00:15] Weighted Error Value: White=0.75/Black=0.30.  Loses game:     	White=2     	---        Mistake:       	White=4     	Black=2      Inaccurate:     	White=3     	Black=2      OK:         	White=8     	Black=10     Best:        	White=2     	Black=3      Strong:       	---       	Black=1      Brilliant:      	---       	Black=2} 0-1